bitfinex-derivatives/quotes_ETHF0:USTF0_20241231
["timestamp","ask_amount","ask_price","bid_price","bid_amount"]
[1735608547898,0.9794,3329.4,3328.8,3.2078]
[1735608548105,0.30089,3329.3,3328.9,0.30091]
[1735608548301,0.9794,3329.4,3328.9,0.30091]
[1735608548506,0.9794,3329.4,3328.8,3.2078]
[1735608548507,0.9794,3329.4,3329.1,0.3009]
[1735608548804,1.28028,3329.4,3329.0,0.30091]
[1735608549000,6.16034966,3329.6,3328.8,3.2078]
[1735608549202,3.2078,3329.6,3328.8,3.2078]
[1735608549399,3.50866,3329.6,3329.2,0.30089]
[1735608550093,3.2078,3329.6,3328.8,3.2078]
[1735608550499,0.30085,3329.7,3329.3,0.30088]
[1735608550801,0.30086,3329.6,3329.2,0.30089]
[1735608552402,0.9668,3329.9,3328.9,1.272]
[1735608552606,0.30086,3329.6,3329.2,0.30089]
[1735608553104,0.9668,3329.9,3329.5,0.30086]
[1735608553105,0.30083,3329.9,3329.5,0.30086]
[1735608553305,7.08984966,3330.0,3329.3,3.2078]
[1735608553598,7.39066966,3330.0,3329.6,0.30085]
[1735608553804,7.39066966,3330.0,3329.4,0.9871]
[1735608553805,7.08984966,3330.0,3329.4,0.9871]
[1735608554007,0.30083,3329.9,3329.5,0.30086]
[1735608554205,0.30084,3329.8,3329.5,0.30086]
[1735608554400,0.30084,3329.8,3329.4,0.9871]
[1735608554401,0.30084,3329.8,3329.4,1.28797]
[1735608554605,0.30083,3329.9,3329.5,0.30086]
[1735608554801,7.39067966,3330.0,3329.6,0.30086]
[1735608555004,7.39067966,3330.0,3329.5,0.30086]
[1735608555005,0.30083,3329.9,3329.5,0.30086]
[1735608555307,7.39066966,3330.0,3329.6,0.30085]
[1735608555904,4.1373,3330.0,3329.8,0.30084]
[1735608557301,0.30083,3329.9,3329.5,0.30086]
[1735608557806,0.30085,3329.8,3329.4,1.28797]
[1735608558509,7.08984966,3330.0,3329.4,0.9871]
[1735608558802,7.39067966,3330.0,3329.6,0.30085]
[1735608559200,4.1373,3330.0,3329.7,0.30084]
[1735608560297,4.1373,3330.0,3329.4,0.9871]
[1735608560503,3.2078,3330.4,3329.4,0.9871]
[1735608560703,3.2078,3330.4,3330.1,0.30081]
[1735608560907,3.2078,3330.4,3329.9,3.2078]
[1735608561103,3.2078,3330.4,3330.2,0.3008]
[1735608562302,0.9524,3330.6,3330.5,0.30078]
[1735608563109,2.59135372,3330.9,3330.5,0.30078]
[1735608563308,0.9939,3331.1,3330.4,0.9557]
[1735608563614,3.2078,3331.3,3331.0,0.30072]
[1735608564109,0.9939,3331.6,3331.0,0.30072]
[1735608564110,0.9939,3331.6,3331.5,0.30069]
[1735608564407,0.25188206,3331.9,3331.1,3.2078]
[1735608564604,6.15475308,3332.4,3331.6,0.30067]
[1735608564605,0.30064,3332.0,3331.6,0.30067]
[1735608564804,0.30064,3332.0,3331.5,3.50848]
[1735608565006,0.30064,3332.0,3331.6,0.30068]
[1735608565508,0.30064,3332.0,3331.5,3.2078]
[1735608565707,0.30064,3332.0,3331.5,3.50848]
[1735608565908,0.24907544,3332.3,3331.5,3.50848]
[1735608566212,0.30065,3331.9,3331.5,3.50848]
[1735608566410,0.30065,3332.0,3331.5,3.50848]
[1735608566910,0.24907544,3332.3,3331.5,3.50848]
[1735608566911,0.30065,3331.9,3331.5,3.50848]
[1735608568707,0.30065,3331.9,3331.5,3.2078]
[1735608569108,0.3007,3331.4,3331.1,3.2078]
[1735608569313,3.2078,3331.9,3331.1,3.2078]
[1735608569314,0.30071,3331.2,3331.1,3.2078]
[1735608570110,1.0068,3331.7,3331.1,3.2078]
[1735608570310,0.30071,3331.3,3331.1,3.2078]
[1735608570512,3.50845,3331.9,3331.4,0.30069]
[1735608570712,3.2078,3332.0,3331.1,3.2078]
[1735608570917,0.75175,3331.4,3330.2,1.2148]
[1735608571114,0.3008,3330.2,3330.1,1.271]
[1735608571422,0.30079,3330.4,3330.1,1.271]
[1735608571914,3.2078,3330.5,3330.1,1.271]
[1735608572119,0.30078,3330.5,3330.1,1.271]
[1735608572317,0.30079,3330.4,3330.1,1.271]
[1735608572516,3.2078,3330.9,3330.1,1.271]
[1735608572718,0.3008,3330.2,3330.1,1.271]
[1735608572924,3.2078,3330.5,3329.5,0.30086]
[1735608573219,3.2078,3330.1,3329.4,3.2078]
[1735608573419,0.30082,3330.0,3329.6,0.30085]
[1735608573824,0.9398,3330.5,3329.5,0.919]
[1735608574216,0.9398,3330.5,3329.8,3.2078]
[1735608574416,3.2078,3330.9,3329.8,3.2078]
[1735608574727,0.30069,3331.5,3330.6,3.2078]
[1735608575022,1.24047,3331.7,3331.4,0.30069]
[1735608575223,0.9398,3331.7,3331.4,0.30069]
[1735608575418,2.94695308,3332.3,3331.4,0.30069]
[1735608575617,2.94695308,3332.3,3331.1,3.2078]
[1735608575618,0.30062,3332.2,3331.6,0.30067]
[1735608575818,0.30064,3332.0,3331.6,0.30067]
[1735608576016,2.94695308,3332.3,3331.1,3.2078]
[1735608576316,0.30066,3331.9,3331.4,0.30069]
[1735608576516,2.94695308,3332.3,3331.3,0.3007]
[1735608576716,0.30069,3331.5,3331.4,40.8]
[1735608577216,0.9579,3331.7,3330.7,6.69495]
[1735608577418,0.30074,3330.9,3330.7,5.1192]
[1735608577724,3.2078,3331.4,3330.7,5.1192]
[1735608577725,0.30074,3331.0,3330.7,4.1268]
[1735608578319,3.2078,3331.4,3330.7,4.1268]
[1735608578624,0.30075,3330.9,3330.7,4.1268]
[1735608579125,3.2078,3331.4,3330.7,4.1268]
[1735608579926,0.30074,3330.9,3330.7,4.1268]
[1735608580118,0.30075,3330.8,3330.7,4.1268]
[1735608580321,0.30074,3330.9,3330.7,4.1268]
[1735608581918,0.30074,3331.0,3330.7,4.1268]
[1735608582323,3.2078,3331.4,3330.8,0.30075]
[1735608582324,0.30072,3331.1,3330.8,0.30075]
[1735608582525,3.2078,3331.4,3330.7,4.1268]
[1735608582818,3.2078,3331.4,3330.7,4.42755]
[1735608583324,0.30073,3331.1,3330.7,4.42755]
[1735608583528,3.2078,3331.4,3330.7,4.1268]
[1735608583729,0.30075,3330.8,3330.7,3.2078]
[1735608584028,2.94695308,3331.1,3330.3,0.9603]
[1735608584029,3.2078,3330.9,3330.3,0.9603]
[1735608584423,0.30079,3330.4,3330.1,4.199]
[1735608584822,3.95966,3330.9,3330.1,4.199]
[1735608584823,0.30079,3330.3,3330.1,4.199]
[1735608585318,0.3008,3330.3,3330.1,4.199]
[1735608587324,0.3008,3330.2,3330.1,4.199]
[1735608587824,0.30079,3330.4,3330.1,4.49981]
[1735608588030,0.30078,3330.5,3330.1,4.199]
[1735608588229,0.9944,3331.0,3330.1,4.199]
[1735608588424,0.3008,3330.2,3330.1,4.199]
[1735608589826,2.94695308,3330.3,3329.7,0.9906]
[1735608590021,0.30084,3329.8,3329.7,0.9906]
[1735608590730,0.75204,3330.1,3329.5,40.8]
[1735608590731,0.30086,3329.6,3329.5,40.8]
[1735608591831,0.30087,3329.5,3329.4,0.9529]
[1735608593327,0.30087,3329.5,3328.8,3.2078]
[1735608593328,0.30092,3328.9,3328.8,3.2078]
[1735608593537,0.30092,3329.0,3328.8,3.2078]
[1735608593834,0.9834,3329.4,3328.8,3.2078]
[1735608594032,0.30091,3329.0,3328.8,3.2078]
[1735608594237,0.30092,3328.9,3328.8,3.2078]
[1735608594931,1.73561,3329.4,3328.8,3.2078]
[1735608594932,0.9834,3329.4,3328.8,3.2078]
[1735608595134,0.30091,3329.0,3328.8,3.2078]
[1735608595336,0.9834,3329.4,3328.8,3.2078]
[1735608595737,0.30091,3329.0,3328.8,3.2078]
[1735608596039,3.2078,3329.6,3328.8,3.2078]
[1735608596241,2.94695308,3329.9,3329.2,3.2078]
[1735608596432,0.30087,3329.5,3329.3,0.9446]
[1735608596736,2.94695308,3329.9,3329.4,0.9954]
[1735608596737,0.30086,3329.6,3329.4,0.9954]
[1735608597334,2.94695308,3329.9,3329.4,0.9954]
[1735608597335,0.30087,3329.5,3329.4,0.9954]
[1735608597838,0.30086,3329.6,3329.4,0.9954]
[1735608598334,2.94695308,3329.9,3329.4,0.9954]
[1735608598539,0.30086,3329.6,3329.4,0.9954]
[1735608598736,0.30086,3329.6,3329.5,40.8]
[1735608599042,0.30087,3329.5,3329.4,0.9954]
[1735608599435,1.05295,3329.8,3328.8,4.4838]
[1735608599640,0.75215,3329.7,3328.8,4.4838]
[1735608599844,3.2078,3329.9,3328.9,0.9492]
[1735608600138,0.30088,3329.3,3329.2,3.2078]
[1735608600334,6.15475308,3329.9,3329.2,3.2078]
[1735608600651,0.30088,3329.3,3329.2,3.2078]
[1735608601139,0.30091,3329.0,3328.9,0.9492]
[1735608602733,0.30088,3329.3,3328.9,1.25011]
[1735608602939,0.75212,3329.8,3328.9,1.25011]
[1735608602940,0.30089,3329.2,3328.9,1.25011]
[1735608603135,0.75212,3329.8,3328.9,0.9492]
[1735608603347,0.30091,3329.1,3329.0,40.8]
[1735608603642,0.30091,3329.0,3328.9,0.9492]
[1735608604743,2.94695308,3329.1,3328.8,3.2078]
[1735608604936,6.15475308,3329.1,3328.3,3.2078]
[1735608605240,0.30097,3328.4,3328.3,3.2078]
[1735608606439,0.30097,3328.4,3327.9,1.9883]
[1735608606440,1.9736,3328.6,3327.9,0.9903]
[1735608606635,0.30105,3327.5,3327.4,6.96391803]
[1735608606841,0.30105,3327.5,3327.4,7.91391803]
[1735608607642,0.30105,3327.5,3327.4,0.95]
[1735608607941,0.30102,3327.9,3327.4,0.95]
[1735608608142,0.30102,3327.9,3327.5,0.9867]
[1735608608446,6.15475308,3328.3,3327.5,0.9867]
[1735608608634,0.30103,3327.7,3327.5,0.9867]
[1735608608834,6.15475308,3328.3,3327.5,0.9867]
[1735608609044,0.30098,3328.2,3327.5,0.9867]
[1735608609241,0.9957,3328.5,3327.9,3.2078]
[1735608609541,0.301,3328.0,3327.9,3.2078]
[1735608609744,0.301,3328.1,3327.9,3.2078]
[1735608609942,3.2078,3328.7,3327.9,3.2078]
[1735608610236,3.2078,3328.7,3328.0,0.301]
[1735608610237,0.30097,3328.4,3328.0,0.301]
[1735608610441,0.30097,3328.4,3328.1,1.005]
[1735608610744,0.30097,3328.4,3328.2,0.9986]
[1735608610938,0.30097,3328.4,3328.2,1.9483]
[1735608611335,4.61392308,3329.1,3328.2,1.9483]
[1735608611540,0.30089,3329.2,3328.6,0.30094]
[1735608611844,6.25231085,3329.7,3328.9,3.2078]
[1735608612046,6.25231085,3329.7,3329.0,0.9986]
[1735608612242,0.30089,3329.3,3329.0,0.9986]
[1735608612443,2.29238085,3329.7,3329.0,0.9986]
[1735608612649,0.30089,3329.3,3329.0,0.9986]
[1735608612837,0.3009,3329.1,3329.0,0.9986]
[1735608613036,0.3009,3329.2,3329.0,0.9986]
[1735608613249,0.3009,3329.1,3329.0,0.9986]
[1735608613945,2.94695308,3329.1,3328.9,3.2078]
[1735608614157,0.30091,3329.0,3328.9,3.2078]
[1735608614342,2.94695308,3329.1,3328.3,1.9864]
[1735608614647,0.30094,3328.8,3328.5,3.2078]
[1735608614836,2.94695308,3329.1,3328.5,44.0078]
[1735608615040,2.94695308,3329.1,3328.5,3.2078]
[1735608615041,0.30095,3328.6,3328.5,3.2078]
[1735608616546,0.30101,3327.9,3327.5,3.2078]
[1735608616749,0.30101,3327.9,3327.5,3.50884]
[1735608616950,3.96023,3328.4,3327.5,3.2078]
[1735608617145,0.30102,3327.8,3327.5,3.2078]
[1735608617841,3.2078,3328.4,3327.5,3.2078]
[1735608618045,0.30103,3327.7,3327.5,3.2078]
[1735608618244,3.2078,3328.4,3327.5,3.2078]
[1735608618651,3.2078,3328.4,3327.7,0.30103]
[1735608618652,0.30101,3328.0,3327.7,0.30103]
[1735608619153,3.2078,3328.4,3327.7,0.30103]
[1735608619359,0.30101,3327.9,3327.7,0.30103]
[1735608619754,3.2078,3328.4,3327.5,3.2078]
[1735608619755,2.94695308,3328.3,3327.5,3.2078]
[1735608619954,0.75247,3328.2,3327.5,3.2078]
[1735608620254,0.30103,3327.7,3327.5,3.2078]
[1735608620450,2.94695308,3328.3,3327.5,3.2078]
[1735608620650,0.30104,3327.6,3327.5,3.2078]
[1735608621164,0.30108,3327.1,3327.0,3.2078]
[1735608621859,0.30108,3327.2,3327.0,3.2078]
[1735608622160,0.30108,3327.1,3327.0,3.2078]
[1735608625859,3.2078,3327.5,3327.0,3.2078]
[1735608626061,0.30108,3327.1,3327.0,3.2078]
[1735608627163,0.30107,3327.3,3327.0,44.0078]
[1735608627561,0.30108,3327.2,3327.0,44.0078]
[1735608628063,2.94695308,3327.5,3327.0,44.0078]
[1735608628264,0.30107,3327.3,3327.0,44.0078]
[1735608628661,0.30106,3327.4,3327.0,44.30889]
[1735608628867,2.94695308,3327.5,3327.1,0.30108]
[1735608628868,0.30105,3327.5,3327.1,0.30108]
[1735608629257,0.30105,3327.5,3327.1,1.25748]
[1735608629457,4.1242,3328.0,3327.4,3.2078]
[1735608629766,0.30102,3327.8,3327.5,0.9735]
[1735608629968,3.2078,3328.0,3327.5,0.9735]
[1735608630164,0.30104,3327.6,3327.5,0.9735]
[1735608630364,2.94695308,3328.1,3327.5,0.9735]
[1735608630767,0.30103,3327.8,3327.5,0.9735]
[1735608630959,0.30103,3327.8,3327.5,1.27455]
[1735608631164,2.94695308,3328.1,3327.5,1.27454]
[1735608631165,0.30101,3327.9,3327.5,1.27454]
[1735608631372,0.30097,3328.4,3328.0,0.301]
[1735608631669,8.44713393,3329.0,3328.2,3.2078]
[1735608631868,0.30095,3328.6,3328.3,0.951]
[1735608632071,2.94695308,3329.0,3328.3,2.25217]
[1735608632367,2.94695308,3329.0,3328.3,1.9512]
[1735608632568,0.30093,3328.8,3328.4,0.30096]
[1735608632761,3.29488085,3329.1,3328.3,1.9512]
[1735608633064,6.15475308,3329.4,3328.3,6.9512]
[1735608633269,0.30086,3329.6,3329.2,0.30089]
[1735608633473,0.30091,3329.1,3328.7,1.24803]
[1735608633768,6.15475308,3329.4,3328.7,0.9471]
[1735608633969,0.30092,3328.9,3328.7,0.9471]
[1735608634266,0.30092,3329.0,3328.7,0.9471]
[1735608634662,6.15475308,3329.4,3328.7,0.9471]
[1735608634864,0.30094,3328.7,3328.6,3.2078]
[1735608635265,2.94695308,3329.0,3328.3,0.951]
[1735608635266,0.30097,3328.4,3328.3,0.951]
[1735608635966,6.15475308,3329.0,3328.3,0.951]
[1735608636167,0.30092,3328.9,3328.3,0.951]
[1735608636366,0.30093,3328.9,3328.5,3.50876]
[1735608636558,2.9412,3329.3,3328.5,3.2078]
[1735608636758,0.30091,3329.0,3328.6,0.30094]
[1735608636968,0.30093,3328.8,3328.5,3.2078]
[1735608637375,0.30095,3328.6,3328.5,3.2078]
[1735608638372,2.94695308,3328.6,3328.0,4.4908]
[1735608638573,0.30098,3328.3,3328.0,4.4908]
[1735608639270,2.94695308,3328.6,3328.0,4.4908]
[1735608639576,0.30099,3328.1,3328.0,3.2078]
[1735608640573,0.30099,3328.1,3327.2,4.7004208]
[1735608640574,0.30106,3327.4,3327.2,4.7004208]
[1735608640963,0.75251,3328.1,3327.2,4.7004208]
[1735608641171,0.30106,3327.4,3327.2,4.7004208]
[1735608641470,3.2078,3328.3,3327.2,4.7004208]
[1735608641471,2.94695308,3327.8,3327.2,4.7004208]
[1735608641668,0.30103,3327.8,3327.4,0.30105]
[1735608641870,0.30098,3328.3,3327.9,0.301]
[1735608642167,0.9944,3328.5,3328.0,3.2078]
[1735608642372,0.30099,3328.1,3328.0,3.2078]
[1735608642562,2.94695308,3328.2,3327.6,3.2078]
[1735608642762,0.301,3328.1,3327.7,0.30102]
[1735608642963,0.30098,3328.3,3327.6,3.2078]
[1735608643173,0.30098,3328.3,3327.7,0.30103]
[1735608643375,3.3079097,3328.5,3327.6,3.2078]
[1735608643573,3.3079097,3328.5,3327.8,0.30102]
[1735608643775,0.30098,3328.3,3327.7,0.30103]
[1735608643974,0.30098,3328.3,3327.6,3.2078]
[1735608644175,0.30098,3328.3,3327.9,0.30101]
[1735608644673,0.30097,3328.4,3328.0,1.021]
[1735608645071,0.30097,3328.4,3328.0,1.322]
[1735608645267,2.94695308,3328.6,3328.2,3.2078]
[1735608645470,2.3135097,3328.8,3328.7,0.30094]
[1735608646178,2.3135097,3329.0,3328.9,0.30092]
[1735608647470,5.78377425,3329.5,3328.9,0.30092]
[1735608647471,0.3009,3329.2,3328.9,0.30092]
[1735608647779,0.30092,3328.9,3328.8,0.9705]
[1735608648173,3.96002,3329.3,3328.5,3.2078]
[1735608648374,0.30094,3328.7,3328.5,3.2078]
[1735608648882,0.9435,3329.1,3328.5,3.2078]
[1735608649176,0.30093,3328.9,3328.6,0.30095]
[1735608649382,0.30091,3329.0,3328.7,0.30093]
[1735608649572,0.9435,3329.1,3328.5,3.2078]
[1735608649876,0.30093,3328.8,3328.5,3.50875]
[1735608650077,0.9435,3329.1,3328.5,3.2078]
[1735608650569,0.3009,3329.2,3328.9,3.50872]
[1735608650771,2.3135097,3329.5,3328.9,4.4908]
[1735608650976,2.3135097,3329.5,3329.4,0.30088]
[1735608651176,2.3135097,3329.5,3329.0,2.8735]
[1735608651366,2.3135097,3329.5,3329.4,0.30088]
[1735608651973,3.47026455,3329.7,3329.4,0.30088]
[1735608651974,0.30085,3329.7,3329.4,0.30088]
[1735608652582,3.50864,3329.8,3329.4,0.30088]
[1735608652771,0.30085,3329.7,3329.4,0.30088]
[1735608653477,0.30084,3329.8,3329.4,0.30088]
[1735608654277,5.26046278,3329.9,3329.3,3.2078]
[1735608654477,8.8210194,3330.2,3329.8,3.2078]
[1735608654478,2.3135097,3330.0,3329.8,3.2078]
[1735608654783,2.3135097,3330.0,3329.9,1.31213]
[1735608654975,2.3135097,3330.0,3329.9,2.31683]
[1735608655681,2.3135097,3330.0,3329.9,3.26823]
[1735608656173,2.31530367,3330.7,3329.9,7.9674]
[1735608656479,2.31530367,3330.7,3330.6,3.50857]
[1735608656678,2.31530367,3330.7,3330.6,4.79157]
[1735608658177,2.94695308,3331.7,3330.6,4.4908]
[1735608658579,0.30076,3330.7,3330.6,4.4908]
[1735608658981,0.30076,3330.7,3330.6,3.2078]
[1735608659879,0.30076,3330.7,3329.1,7.9082208]
[1735608659880,11.15475308,3330.7,3329.1,7.9082208]
[1735608660180,11.15475308,3330.7,3329.1,4.7004208]
[1735608660181,2.94695308,3329.7,3329.1,4.7004208]
[1735608660389,0.30089,3329.2,3329.1,4.7004208]
[1735608660594,0.30089,3329.2,3329.1,2.99283569]
[1735608660884,2.94695308,3329.3,3328.7,3.2078]
[1735608661080,0.30087,3329.5,3328.9,0.30091]
[1735608661286,2.0019,3329.6,3328.7,3.2078]
[1735608661473,3.2078,3329.8,3329.2,3.2078]
[1735608661677,0.9622,3330.2,3329.7,3.2078]
[1735608661885,1.26301,3330.2,3329.7,3.2078]
[1735608662192,2.94695308,3330.5,3329.8,0.30084]
[1735608662193,0.3008,3330.3,3329.8,0.30084]
[1735608662479,3.2078,3330.6,3329.7,3.2078]
[1735608662674,4.6270194,3331.0,3330.3,3.2078]
[1735608662878,4.6270194,3331.0,3330.4,1.9811]
[1735608663081,4.6270194,3331.0,3330.9,0.30074]
[1735608663289,0.9387,3331.6,3330.7,3.2078]
[1735608663587,0.9387,3331.6,3331.2,3.50851]
[1735608663880,1.23938,3331.6,3331.2,3.2078]
[1735608664780,0.30069,3331.5,3331.2,3.2078]
[1735608665286,0.3007,3331.4,3331.2,3.2078]
[1735608665986,0.30069,3331.5,3330.9,0.9635]
[1735608666182,0.9387,3331.6,3330.9,0.9635]
[1735608666485,0.9387,3331.6,3330.8,3.2078]
[1735608666680,0.30074,3330.9,3330.8,3.2078]
[1735608666984,0.30077,3330.6,3330.5,1.336]
[1735608667183,0.30076,3330.7,3330.5,1.336]
[1735608667583,2.94695308,3331.3,3330.5,1.336]
[1735608667782,0.30077,3330.6,3330.5,1.336]
[1735608668186,0.30074,3330.9,3330.5,1.336]
[1735608668486,2.94695308,3331.3,3330.2,3.2078]
[1735608668487,1.0525,3331.2,3330.2,3.2078]
[1735608668682,0.30078,3330.5,3330.2,4.175]
[1735608668878,0.9975,3331.1,3330.2,4.175]
[1735608669082,0.30079,3330.3,3330.2,3.2078]
[1735608672883,0.30079,3330.3,3329.8,0.9726]
[1735608673086,0.30081,3330.1,3329.8,5.5164]
[1735608673686,1.0125,3330.7,3329.8,5.5164]
[1735608673987,1.0125,3330.7,3329.8,3.2078]
[1735608673988,2.94695308,3330.5,3329.8,3.2078]
[1735608674193,0.30083,3329.9,3329.8,3.2078]
[1735608674686,1.76441,3330.7,3329.3,0.9672]
[1735608674687,2.94695308,3330.1,3329.3,3.2078]
[1735608674984,3.2078,3330.2,3329.3,3.2078]
[1735608674985,0.30088,3329.4,3329.3,3.2078]
[1735608675381,0.30093,3328.8,3328.7,1.9652]
[1735608675587,0.30091,3329.0,3328.7,2.26613]
[1735608675885,0.30093,3328.8,3328.7,42.7652]
[1735608676086,0.30091,3329.1,3328.8,0.30093]
[1735608676285,0.30088,3329.4,3329.1,0.3009]
[1735608676688,0.3009,3329.2,3329.0,3.2078]
[1735608677187,4.2291,3329.8,3329.0,3.2078]
[1735608677380,2.94695308,3330.0,3329.0,3.2078]
[1735608677381,0.30085,3329.7,3329.3,3.2078]
[1735608677686,0.9619,3330.1,3329.6,0.30086]
[1735608677882,0.9619,3330.1,3329.8,3.2078]
[1735608678187,0.30079,3330.3,3330.0,0.30082]
[1735608678385,0.9946,3330.6,3329.9,1.336]
[1735608678583,3.90885308,3330.8,3330.2,3.2078]
[1735608678783,0.30079,3330.4,3330.2,3.2078]
[1735608679092,0.30079,3330.3,3330.2,3.2078]
[1735608680886,0.30079,3330.3,3330.1,1.0273]
[1735608680887,2.94695308,3330.3,3329.2,3.2078]
[1735608681097,0.30088,3329.4,3329.0,0.30091]
[1735608681386,3.2078,3329.6,3328.8,1.9688]
[1735608681387,2.94695308,3330.1,3329.5,0.30086]
[1735608681589,2.94695308,3330.1,3329.6,1.0048]
[1735608681590,0.30083,3329.9,3329.6,1.0048]
[1735608681793,0.30083,3329.9,3329.6,1.9688]
[1735608681990,2.94695308,3330.1,3329.6,1.9688]
[1735608681991,0.30084,3329.8,3329.6,1.9688]
[1735608682489,0.30085,3329.7,3329.6,1.9688]
[1735608682983,2.94695308,3330.1,3329.6,1.9688]
[1735608683188,2.94695308,3330.5,3329.7,3.2078]
[1735608683484,3.2078,3330.6,3330.1,3.2078]
[1735608683689,0.3008,3330.3,3330.1,3.2078]
[1735608683886,2.94695308,3330.5,3330.1,3.2078]
[1735608684194,0.3008,3330.2,3330.1,3.2078]
[1735608684789,4.65400308,3330.5,3329.6,1.9688]
[1735608684989,0.30085,3329.7,3329.6,1.9688]
[1735608686092,0.30085,3329.7,3329.6,1.0048]
[1735608688992,0.30083,3329.9,3329.6,1.30565]
[1735608689288,0.30083,3329.9,3329.7,0.946]
[1735608689903,0.30084,3329.8,3329.7,0.946]
[1735608690099,0.30085,3329.7,3329.6,1.0048]
[1735608690597,0.30084,3329.8,3329.6,1.0048]
[1735608690787,3.2078,3330.2,3329.6,1.0048]
[1735608690987,0.30082,3330.0,3329.6,1.30565]
[1735608691396,3.2078,3330.2,3329.6,1.0048]
[1735608691397,0.30084,3329.8,3329.6,1.0048]
[1735608692497,3.2078,3330.2,3329.6,1.30565]
[1735608692898,0.30085,3329.7,3329.6,1.0048]
[1735608697093,3.2078,3330.2,3329.6,1.0048]
[1735608697697,0.30083,3329.9,3329.6,1.30565]
[1735608698096,0.30084,3329.8,3329.6,1.30565]
[1735608698393,3.2078,3330.2,3329.6,1.30565]
[1735608698598,0.30085,3329.7,3329.6,1.0048]
[1735608700201,0.30086,3329.6,3329.5,1.338]
[1735608700703,0.75204,3330.1,3329.5,1.338]
[1735608700894,0.30086,3329.6,3329.5,1.63886]
[1735608701097,0.30085,3329.7,3329.6,0.30086]
[1735608701598,3.2078,3330.2,3329.5,1.338]
[1735608701801,0.30086,3329.6,3329.5,1.63886]
[1735608702000,0.30086,3329.6,3329.2,0.946]
[1735608702001,0.30088,3329.3,3329.2,0.946]
[1735608702206,2.29133056,3329.3,3329.0,7.0506312]
[1735608702404,0.3009,3329.1,3329.0,7.0506312]
[1735608703805,0.3009,3329.1,3328.8,0.30093]
[1735608704003,5.49913056,3329.4,3328.7,0.9689]
[1735608704203,0.30092,3328.9,3328.7,1.26984]
[1735608704501,0.30092,3328.9,3328.7,0.9689]
[1735608705005,0.30093,3328.8,3328.7,0.9689]
[1735608706410,0.30094,3328.7,3328.6,3.2078]
[1735608707607,0.30098,3328.2,3328.1,7.0506312]
[1735608708316,1.03,3328.6,3328.1,7.0506312]
[1735608708609,0.30099,3328.1,3328.0,4.5338]
[1735608709707,1.03,3328.6,3328.0,4.2328]
[1735608710013,0.30099,3328.2,3328.0,4.53379]
[1735608710303,1.03,3328.6,3328.0,4.53379]
[1735608710304,0.30096,3328.5,3328.0,4.2328]
[1735608710498,0.30099,3328.2,3328.1,0.30099]
[1735608710905,1.03,3328.6,3328.0,4.2328]
[1735608711105,3.2078,3328.8,3328.4,3.2078]
[1735608711306,3.2078,3328.8,3328.7,0.30094]
[1735608711704,3.2078,3328.8,3328.7,41.10094]
[1735608711906,3.2078,3328.8,3328.7,42.07634]
[1735608712512,3.2078,3328.8,3328.7,1.27634]
[1735608712707,0.30091,3329.1,3329.0,0.30091]
[1735608712906,0.30089,3329.3,3329.2,0.30089]
[1735608713100,3.2078,3329.9,3329.2,3.2078]
[1735608713312,0.30083,3329.9,3329.8,0.30084]
[1735608713509,4.6270194,3330.0,3329.7,4.5458]
[1735608713708,0.30084,3329.8,3329.7,4.5458]
[1735608714207,0.30087,3329.5,3329.4,1.0072]
[1735608718205,0.9995,3329.7,3329.1,3.2078]
[1735608718715,0.30089,3329.3,3329.2,0.30089]
[1735608719009,0.9995,3329.7,3329.1,3.2078]
[1735608719213,0.30089,3329.2,3329.1,3.5087]
[1735608719412,0.30089,3329.2,3329.1,3.2078]
[1735608719812,0.30089,3329.2,3329.1,3.5087]
[1735608720609,0.9995,3329.7,3329.1,3.2078]
[1735608721012,0.30088,3329.4,3329.3,0.30088]
[1735608721717,0.30086,3329.6,3329.5,0.30086]
[1735608722218,2.95091939,3330.0,3329.1,3.2078]
[1735608722219,0.30087,3329.5,3329.4,0.30087]
[1735608722410,0.30088,3329.3,3329.2,0.30088]
[1735608722807,2.95091939,3330.0,3329.1,3.2078]
[1735608723019,0.30085,3329.8,3329.6,3.2078]
[1735608723316,0.30085,3329.8,3329.7,2.24415]
[1735608724019,7.70461913,3330.3,3329.7,1.9433]
[1735608724312,0.30088,3329.4,3329.1,3.2078]
[1735608724511,0.30089,3329.2,3329.1,3.2078]
[1735608725018,0.30089,3329.3,3329.1,3.5087]
[1735608725211,2.95091939,3329.6,3329.1,3.2078]
[1735608725407,0.30089,3329.2,3329.1,3.2078]
[1735608728314,0.30088,3329.4,3329.1,3.5087]
[1735608728508,0.30089,3329.2,3329.1,3.2078]
[1735608729412,0.30095,3328.7,3328.6,3.2078]
[1735608729718,3.70316939,3329.2,3328.6,3.2078]
[1735608729719,0.30094,3328.8,3328.6,3.2078]
[1735608730017,2.95091939,3329.2,3328.7,0.30093]
[1735608730219,2.95091939,3329.2,3328.6,3.2078]
[1735608730720,0.30094,3328.7,3328.6,3.2078]
[1735608731219,1.31254,3328.7,3328.6,3.2078]
[1735608732708,0.30099,3328.1,3328.0,5.1509]
[1735608733418,3.2078,3328.3,3327.8,40.8]
[1735608734015,0.30101,3327.9,3327.8,40.8]
[1735608734622,3.2078,3328.3,3327.8,40.8]
[1735608734623,0.30101,3328.0,3327.8,40.8]
[1735608734821,0.30101,3327.9,3327.8,40.8]
[1735608735120,0.30101,3328.0,3327.8,40.8]
[1735608735614,0.30101,3327.9,3327.8,40.8]
[1735608736221,3.2078,3328.3,3327.8,40.8]